bitfinex/quotes_SOLUSD_20240624
["timestamp","ask_amount","ask_price","bid_price","bid_amount"]
[1719198061989,19.37050006,127.15,127.08,6.1249]
[1719198062189,19.37050006,127.15,127.09,0.34]
[1719198062587,7.12686912,127.18,127.09,0.34]
[1719198062787,20.0,127.17,127.1,16.5926]
[1719198063002,0.8161933,127.18,127.12,6.6548]
[1719198064316,20.8161933,127.18,127.12,6.6548]
[1719198064485,20.0,127.17,127.12,6.6548]
[1719198064686,18.76,127.16,127.12,6.6548]
[1719198066724,18.76,127.16,127.13,0.17]
[1719198067021,18.76,127.24,127.15,6.5771]
[1719198067201,18.76,127.24,127.16,0.17]
[1719198067399,18.76,127.24,127.17,15.3173]
[1719198067600,18.76,127.26,127.19,6.0481]
[1719198067800,18.76,127.26,127.2,0.34]
[1719198068202,18.76,127.28,127.21,15.3173]
[1719198068406,18.76,127.28,127.23,6.0481]
[1719198069015,18.76,127.28,127.24,0.17]
[1719198069406,18.76,127.28,127.23,6.0481]
[1719198070724,6.8642933,127.31,127.24,0.34]
[1719198071429,20.0,127.3,127.24,0.17]
[1719198071638,20.0,127.3,127.23,6.0481]
[1719198072629,20.0,127.3,127.24,0.34]
[1719198073140,20.0,127.3,127.24,0.17]
[1719198073312,20.0,127.3,127.23,6.0481]
[1719198074026,41.84,127.3,127.23,6.0481]
[1719198074422,0.17,127.29,127.23,6.0481]
[1719198074607,0.34,127.29,127.23,6.0481]
[1719198074804,41.84,127.3,127.23,6.0481]
[1719198077426,0.17,127.29,127.23,6.0481]
[1719198079134,0.34,127.29,127.23,6.0481]
[1719198079439,21.84,127.27,127.23,6.0481]
[1719198079819,20.0,127.26,127.23,6.0481]
[1719198081032,20.0,127.26,127.2,6.4011]
[1719198081231,0.34,127.25,127.2,6.4011]
[1719198081830,20.0,127.26,127.2,6.4011]
[1719198086419,0.34,127.25,127.2,6.4011]
[1719198086621,20.0,127.26,127.2,6.4011]
[1719198087236,0.17,127.25,127.2,6.4011]
[1719198087743,20.0,127.26,127.2,6.4011]
[1719198090742,18.74,127.24,127.2,6.4011]
[1719198093548,20.0,127.23,127.2,6.4011]
[1719198093749,18.74,127.24,127.2,6.4011]
[1719198093939,18.74,127.26,127.2,6.4011]
[1719198094145,6.8642933,127.31,127.21,0.17]
[1719198094450,18.74,127.27,127.21,0.17]
[1719198094830,20.0,127.26,127.21,0.34]
[1719198095243,20.0,127.26,127.2,6.4011]
[1719198095244,18.74,127.24,127.2,6.4011]
[1719198096050,38.74,127.26,127.2,6.4011]
[1719198096051,18.74,127.22,127.2,6.4011]
[1719198097155,20.0,127.23,127.2,6.4011]
[1719198097356,18.74,127.24,127.2,6.4011]
[1719198099666,18.74,127.24,127.21,0.17]
[1719198099855,18.74,127.24,127.21,0.34]
[1719198100050,18.74,127.24,127.2,6.4011]
[1719198100355,18.74,127.22,127.2,6.4011]
[1719198102857,20.0,127.23,127.2,6.4011]
[1719198103064,18.74,127.26,127.2,6.4011]
[1719198103263,18.74,127.26,127.21,0.34]
[1719198103464,20.0,127.25,127.21,0.17]
[1719198103675,20.0,127.25,127.2,6.4011]
[1719198104893,20.0,127.25,127.21,0.34]
[1719198105471,18.74,127.28,127.21,0.34]
[1719198105886,20.0,127.27,127.22,15.8423]
[1719198106194,20.0,127.27,127.23,0.34]
[1719198106885,20.0,127.27,127.23,0.17]
[1719198108097,20.0,127.27,127.22,15.8423]
[1719198109712,20.0,127.27,127.23,0.34]
[1719198113121,20.0,127.27,127.22,15.8423]
[1719198113508,18.74,127.26,127.22,15.8423]
[1719198113704,18.74,127.26,127.2,6.4011]
[1719198113910,18.74,127.24,127.2,6.4011]
[1719198114509,20.0,127.23,127.2,6.4011]
[1719198115332,18.74,127.22,127.18,16.488]
[1719198118126,20.0,127.21,127.18,16.488]
[1719198120305,18.74,127.24,127.18,16.488]
[1719198120706,20.0,127.23,127.18,16.488]
[1719198122015,18.74,127.25,127.18,16.488]
[1719198122231,20.0,127.24,127.18,16.488]
[1719198123838,18.74,127.23,127.18,16.488]
[1719198124214,20.0,127.22,127.18,16.488]
[1719198129420,18.74,127.22,127.18,16.488]
[1719198129623,18.74,127.24,127.18,16.488]
[1719198129823,20.0,127.23,127.18,16.488]
[1719198132617,18.74,127.24,127.18,16.488]
[1719198132812,20.0,127.23,127.18,16.488]
[1719198133013,6.28989456,127.27,127.19,0.34]
[1719198133250,15.3971,127.29,127.19,0.34]
[1719198133251,38.74,127.26,127.19,0.34]
[1719198133922,6.8642933,127.31,127.2,6.5167]
[1719198134113,38.74,127.3,127.22,15.6749]
[1719198134316,38.74,127.3,127.23,0.34]
[1719198134725,0.8161933,127.31,127.23,0.34]
[1719198134726,0.8161933,127.31,127.24,6.5167]
[1719198134922,0.8161933,127.31,127.25,0.34]
[1719198136922,0.8161933,127.31,127.27,6.5167]
[1719198140822,0.8161933,127.31,127.28,0.34]
[1719198141451,0.8161933,127.31,127.27,6.5167]
[1719198142078,19.5561933,127.31,127.27,6.5167]
[1719198144791,0.8161933,127.31,127.28,0.34]
[1719198146156,0.8161933,127.31,127.27,6.5167]
[1719198147376,18.74,127.3,127.26,15.6749]
[1719198147887,20.0,127.29,127.26,15.6749]
[1719198150494,0.8161933,127.31,127.26,15.6749]
[1719198153304,19.5561933,127.31,127.26,15.6749]
[1719198153979,20.0,127.3,127.26,15.6749]
[1719198154897,0.8161933,127.31,127.27,0.17]
[1719198155708,0.8161933,127.31,127.27,0.34]
[1719198157541,0.8161933,127.31,127.28,6.3946]
[1719198157837,0.8161933,127.31,127.29,0.34]
[1719198159937,0.8161933,127.31,127.29,8.1957]
[1719198160138,38.74,127.39,127.3,16.122]
[1719198160314,38.74,127.39,127.31,0.34]
[1719198164716,6.23,127.33,127.31,0.34]
[1719198164937,6.23,127.34,127.3,16.122]
[1719198165119,24.92,127.38,127.3,16.122]
[1719198165120,6.23,127.31,127.3,16.122]
[1719198166441,24.92,127.38,127.3,16.122]
[1719198166639,6.23,127.32,127.3,16.122]
[1719198167817,24.92,127.38,127.3,16.122]
[1719198168017,6.23,127.32,127.3,16.122]
[1719198168341,6.23,127.33,127.3,16.122]
[1719198168917,6.23,127.31,127.3,16.122]
[1719198170639,24.92,127.38,127.3,16.122]
[1719198170843,6.23,127.31,127.3,16.122]
[1719198171552,6.23,127.32,127.3,16.122]
[1719198171763,6.23,127.31,127.3,16.122]
[1719198173545,20.0,127.37,127.3,16.122]
[1719198173762,6.23,127.31,127.3,16.122]
[1719198174559,20.0,127.37,127.3,16.122]
[1719198174758,6.23,127.32,127.3,16.122]
[1719198174967,20.0,127.37,127.3,16.122]
[1719198175142,6.23,127.33,127.3,16.122]
[1719198175342,20.0,127.37,127.3,16.122]
[1719198175545,6.23,127.33,127.3,16.122]
[1719198176043,20.0,127.37,127.3,16.122]
[1719198176241,6.23,127.34,127.31,0.34]
[1719198176463,6.23,127.35,127.31,0.34]
[1719198176664,6.23,127.34,127.31,0.34]
[1719198177481,28.04530463,127.42,127.31,0.34]
[1719198177652,6.23,127.35,127.31,0.34]
[1719198178269,20.0,127.41,127.31,0.34]
[1719198178457,6.23,127.35,127.31,0.34]
[1719198178666,20.0,127.41,127.31,0.34]
[1719198178852,6.23,127.35,127.31,0.34]
[1719198179367,6.23,127.34,127.31,0.34]
[1719198179787,6.23,127.35,127.31,0.34]
[1719198180583,24.92,127.38,127.31,0.34]
[1719198180786,6.23,127.34,127.31,0.34]
[1719198181066,6.23,127.35,127.31,0.34]
[1719198182167,24.92,127.38,127.31,0.34]
[1719198182352,19.96072424,127.41,127.32,12.6117]
[1719198182553,6.23,127.36,127.32,12.6117]
[1719198182763,19.96072424,127.41,127.32,20.4658]
[1719198183064,6.23,127.36,127.33,0.17]
[1719198183267,6.23,127.35,127.32,6.3817]
[1719198183476,6.23,127.33,127.32,6.3817]
[1719198184675,19.96072424,127.41,127.32,6.3817]
[1719198184870,6.23,127.34,127.32,6.3817]
[1719198185070,24.92,127.38,127.32,6.3817]
[1719198185276,24.92,127.38,127.3,16.122]
[1719198185277,6.23,127.33,127.3,16.122]
[1719198185449,6.23,127.31,127.3,16.122]
[1719198186753,3.03216769,127.37,127.3,16.122]
[1719198187057,22.69216769,127.37,127.3,16.122]
[1719198187258,6.23,127.33,127.3,16.122]
[1719198187461,6.2641,127.4,127.3,23.977]
[1719198187775,6.23,127.33,127.3,16.122]
[1719198187971,6.23,127.31,127.3,16.122]
[1719198188675,18.7,127.36,127.29,6.5813]
[1719198188869,0.34,127.35,127.26,16.2866]
[1719198189076,18.7,127.31,127.26,6.3804]
[1719198189374,18.7,127.31,127.23,22.2114]
[1719198189550,18.7,127.29,127.23,22.2114]
[1719198189751,18.7,127.27,127.23,6.3804]
[1719198189971,18.7,127.27,127.2,22.2114]
[1719198190673,0.17,127.28,127.2,22.2114]
[1719198190874,39.04,127.29,127.2,22.2114]
[1719198191056,38.7,127.29,127.2,30.0728]
[1719198191256,38.7,127.29,127.2,22.2114]
[1719198191656,0.34,127.28,127.2,22.2114]
[1719198194083,38.7,127.29,127.2,30.0726]
[1719198194457,38.7,127.29,127.21,7.8609]
[1719198194773,38.7,127.29,127.2,22.2114]
[1719198194971,38.7,127.29,127.21,0.17]
[1719198195154,38.7,127.29,127.2,30.0728]
[1719198195359,38.7,127.29,127.2,22.2114]
[1719198196057,18.7,127.29,127.2,22.2114]
[1719198196262,18.7,127.29,127.21,0.34]
[1719198196582,18.7,127.29,127.21,8.2006]
[1719198196783,18.7,127.31,127.22,7.8603]
[1719198196960,15.8198,127.33,127.21,0.34]
[1719198196961,34.5198,127.33,127.23,0.34]
[1719198197158,34.5198,127.33,127.21,0.34]
[1719198197354,20.0,127.32,127.21,0.34]
[1719198197766,34.5198,127.33,127.22,30.0786]
[1719198197767,18.7,127.33,127.22,30.0786]
[1719198197962,18.7,127.33,127.23,0.34]
[1719198199279,18.7,127.33,127.23,8.1995]
[1719198199583,0.17,127.34,127.25,7.8582]
[1719198199883,20.17,127.34,127.26,0.17]
[1719198200462,24.94944242,127.35,127.27,6.5722]
[1719198200785,24.94944242,127.35,127.28,15.6464]
[1719198202879,18.7,127.33,127.27,6.5722]
[1719198204292,20.0,127.34,127.27,6.5722]
[1719198204866,18.7,127.35,127.27,6.5722]
[1719198206369,18.7,127.33,127.27,6.5722]
[1719198211591,0.17,127.34,127.27,6.5722]
[1719198211592,18.7,127.31,127.27,6.5722]
[1719198212069,18.7,127.31,127.24,22.9648]
[1719198212477,20.0,127.3,127.24,22.9648]
[1719198215680,18.7,127.31,127.24,22.9648]
[1719198216477,2.69216769,127.34,127.24,22.9648]
[1719198216697,18.7,127.34,127.25,8.0283]
[1719198216915,20.0,127.33,127.26,0.17]
[1719198217318,24.9822066,127.36,127.27,6.068]
[1719198217502,24.9822066,127.36,127.29,15.0987]
[1719198217832,18.7,127.36,127.29,15.0987]
[1719198219233,18.92846769,127.4,127.3,0.17]
[1719198219402,18.7,127.39,127.31,6.0491]
[1719198219606,20.0,127.38,127.31,6.0491]
[1719198219803,18.7,127.39,127.31,6.0491]
[1719198224637,18.7,127.39,127.32,0.17]
[1719198224851,16.1594933,127.43,127.33,15.0688]
[1719198225131,18.7,127.4,127.33,15.0688]
[1719198225901,18.7,127.4,127.34,6.2112]
[1719198227342,7.10268875,127.43,127.34,6.2112]
[1719198227517,18.7,127.41,127.34,6.2112]
[1719198228247,0.34,127.4,127.34,6.2112]
[1719198228623,18.7,127.41,127.34,6.2112]
[1719198229655,0.8161933,127.43,127.34,6.2112]
[1719198229811,20.8161933,127.43,127.34,6.2112]
[1719198231620,20.8161933,127.43,127.35,0.17]
[1719198231847,20.8161933,127.43,127.35,0.34]
[1719198233658,0.17,127.42,127.34,6.2112]
[1719198233870,0.34,127.42,127.34,6.2112]
[1719198234375,0.17,127.42,127.34,6.2112]
[1719198235682,20.8161933,127.43,127.35,0.17]
[1719198235885,20.8161933,127.43,127.34,6.2112]
[1719198236250,18.7,127.38,127.34,6.2112]
[1719198236867,18.7,127.36,127.34,6.2112]
[1719198238754,18.7,127.36,127.33,15.0688]
[1719198241078,18.7,127.36,127.31,6.2343]
[1719198242166,18.7,127.32,127.27,15.1431]
[1719198242367,18.7,127.3,127.27,15.1431]
[1719198243993,18.7,127.32,127.27,15.1431]
[1719198245284,18.7,127.3,127.27,15.1431]
[1719198247623,15.9054,127.35,127.27,15.1431]
[1719198247781,18.7,127.35,127.27,15.1431]
[1719198247983,20.0,127.34,127.27,15.1431]
[1719198250495,18.7,127.32,127.27,15.1431]
[1719198250692,18.7,127.3,127.25,6.0219]
[1719198256086,18.7,127.28,127.24,16.0205]
[1719198256286,18.7,127.26,127.21,6.4257]
[1719198256486,18.7,127.23,127.2,15.587]
[1719198256703,18.7,127.23,127.18,6.3006]
[1719198258391,0.17,127.25,127.18,6.3006]
[1719198258590,18.7,127.24,127.18,6.3006]
[1719198263113,0.17,127.23,127.18,6.3006]
[1719198263495,18.7,127.22,127.18,6.3006]
[1719198267818,0.34,127.23,127.18,6.3006]
[1719198268316,15.3435,127.28,127.18,6.3006]
[1719198268519,18.7,127.26,127.18,6.3006]
[1719198268821,18.7,127.24,127.18,6.3006]
[1719198269615,0.17,127.23,127.18,6.3006]
[1719198269819,18.7,127.24,127.18,6.3006]
[1719198270313,20.17,127.25,127.18,6.3006]
[1719198270514,21.57192571,127.28,127.18,6.3006]
[1719198270721,18.7,127.26,127.18,6.3006]
[1719198270907,20.0,127.25,127.18,6.3006]
[1719198271308,18.7,127.22,127.18,6.3006]
[1719198275515,0.34,127.23,127.17,16.3107]
[1719198275516,18.7,127.19,127.17,16.3107]
[1719198275706,18.7,127.19,127.15,6.3199]
[1719198275901,18.7,127.17,127.14,16.0362]
[1719198277533,20.0,127.18,127.14,16.0362]
[1719198277729,18.7,127.2,127.14,16.0362]
[1719198277929,15.0861,127.23,127.14,16.0362]
[1719198278239,18.7,127.22,127.14,16.0362]
[1719198278537,34.3675,127.26,127.15,6.0665]
[1719198278705,20.0,127.25,127.15,6.0665]
[1719198278909,18.7,127.24,127.15,6.0665]
[1719198279330,20.0,127.23,127.15,6.0665]
[1719198279720,18.7,127.22,127.15,6.0665]
[1719198279932,18.7,127.2,127.15,6.0665]
[1719198281130,40.79050978,127.26,127.15,6.0665]
[1719198281431,18.7,127.24,127.15,6.0665]
[1719198281607,0.17,127.23,127.15,6.0665]
[1719198282033,20.17,127.23,127.15,6.0665]
[1719198283914,20.0,127.23,127.15,6.0665]
[1719198284841,20.0,127.22,127.15,6.0665]
[1719198285016,0.17,127.24,127.15,6.0665]
[1719198285336,18.7,127.24,127.15,6.0665]
[1719198285633,0.34,127.23,127.15,6.0665]
[1719198285836,22.09050978,127.26,127.15,6.0665]
[1719198286042,18.7,127.24,127.15,6.0665]
[1719198286250,18.7,127.24,127.16,0.17]
[1719198286535,20.0,127.23,127.16,0.17]
[1719198287939,18.87,127.25,127.16,0.17]
[1719198288245,20.17,127.24,127.16,0.17]
[1719198288440,20.0,127.24,127.17,15.4938]
[1719198288623,18.7,127.25,127.17,15.4938]
[1719198288813,20.0,127.24,127.17,15.4938]
[1719198289938,21.39216769,127.27,127.18,6.7559]
[1719198290141,20.0,127.26,127.18,6.7559]
[1719198292524,20.0,127.26,127.19,16.4114]
[1719198294145,2.69216769,127.27,127.19,24.2735]
[1719198294321,20.0,127.27,127.2,6.4822]
[1719198294521,6.32828462,127.28,127.2,6.4822]
[1719198294743,20.0,127.27,127.2,6.4822]
[1719198294938,20.0,127.28,127.2,6.4822]
[1719198298734,19.04,127.27,127.2,6.4822]
[1719198299224,20.0,127.26,127.2,6.4822]
[1719198302545,18.7,127.25,127.2,6.4822]
[1719198302737,18.7,127.25,127.11,100.0]
[1719198302738,18.7,127.21,127.16,22.603]
[1719198303048,18.7,127.19,127.16,6.032]
[1719198304344,18.7,127.22,127.16,6.032]
[1719198304651,15.7633,127.27,127.17,15.9707]
[1719198304845,38.7,127.26,127.17,15.9707]
[1719198305727,20.0,127.26,127.17,15.9707]
[1719198305927,20.0,127.25,127.17,15.9707]
[1719198306329,20.17,127.24,127.17,15.9707]
[1719198306635,18.87,127.26,127.17,15.9707]
[1719198306832,20.0,127.25,127.17,15.9707]
[1719198307458,18.87,127.24,127.17,15.9707]
[1719198307933,20.0,127.23,127.17,15.9707]
[1719198308662,18.7,127.2,127.16,6.032]
[1719198308958,0.17,127.19,127.16,6.032]
[1719198309952,18.7,127.18,127.14,15.4432]
[1719198310150,0.17,127.17,127.12,6.2041]
[1719198310352,18.7,127.16,127.12,6.2041]
[1719198310537,18.7,127.14,127.1,15.4432]
[1719198310744,18.7,127.14,127.08,6.5386]
[1719198310946,0.17,127.13,127.08,6.5386]
[1719198311555,0.34,127.13,127.08,6.5386]
[1719198311861,18.7,127.12,127.08,6.5386]
[1719198312039,18.87,127.11,127.08,6.5386]
[1719198312366,18.7,127.11,127.08,6.5386]
[1719198312859,20.34,127.13,127.08,6.5386]
[1719198313048,0.34,127.13,127.08,6.5386]
[1719198313240,0.17,127.12,127.08,6.5386]
[1719198313442,20.34,127.14,127.08,6.5386]
[1719198313648,20.34,127.14,127.05,6.1059]
[1719198314236,45.0,127.13,127.05,6.1059]
[1719198314450,20.34,127.12,127.05,6.1059]
[1719198315446,42.24,127.12,127.05,6.1059]
[1719198316855,20.0,127.12,127.05,6.1059]
[1719198317061,20.0,127.15,127.05,6.1059]
[1719198318369,22.69216769,127.15,127.05,6.1059]
[1719198318752,21.9,127.14,127.05,6.1059]
[1719198318946,20.0,127.13,127.05,6.1059]
[1719198319151,0.34,127.12,127.05,6.1059]
[1719198319961,21.9,127.11,127.0,21.2539]
[1719198320269,21.9,127.08,127.0,6.0338]
[1719198320761,0.34,127.07,127.0,6.0338]
[1719198320961,20.34,127.07,127.0,6.0338]
[1719198322864,20.34,127.07,126.99,0.8161933]
[1719198323252,21.9,127.05,126.99,0.8161933]
[1719198323459,0.34,127.04,126.99,0.8161933]
[1719198323675,20.34,127.04,126.99,0.8161933]
[1719198325162,36.8253,127.04,126.99,0.8161933]
[1719198327881,21.9,127.02,126.99,0.8161933]
[1719198328056,0.34,127.01,126.99,0.8161933]
[1719198328259,20.34,127.01,126.99,9.33e-05]
[1719198328856,45.0,127.0,126.92,6.6551]
[1719198329075,0.34,126.99,126.92,6.6551]
[1719198329266,20.34,126.99,126.92,6.6551]
[1719198329869,42.24,126.99,126.91,15.1838]
[1719198330068,42.24,126.99,126.89,6.6663]
[1719198331069,42.24,126.99,126.87,0.8161933]
[1719198331070,21.9,126.96,126.87,0.8161933]
[1719198331481,0.34,126.95,126.87,0.8161933]
[1719198331683,20.0,126.95,126.89,6.0013]
[1719198331870,20.0,126.98,126.89,6.0013]
[1719198332076,43.2673,127.02,126.89,6.0013]
[1719198332588,49.69933435,127.02,126.89,6.0013]
[1719198333177,6.43203435,127.02,126.9,8.0501]
[1719198333469,20.0,127.01,126.9,0.17]
[1719198333668,2.69216769,127.04,126.89,6.0013]
[1719198334389,21.9,127.01,126.89,6.0013]
[1719198334579,0.34,127.0,126.89,6.0013]
[1719198334786,48.03216769,127.0,126.89,6.0013]
[1719198335000,23.03216769,127.0,126.89,6.0013]
[1719198335702,22.86216769,127.0,126.89,13.882]
[1719198335871,20.17,127.0,126.89,6.0013]
[1719198337422,0.17,126.99,126.89,6.0013]
[1719198340801,24.59216769,126.98,126.89,6.0013]
[1719198341002,0.34,126.97,126.89,6.0013]
[1719198341229,20.34,126.97,126.89,6.0013]
[1719198341614,36.7436,126.97,126.89,6.0013]
[1719198342717,18.83,126.94,126.89,6.0013]
[1719198342902,20.34,126.93,126.89,6.0013]
[1719198343107,20.0,126.93,126.89,6.0013]
[1719198343535,18.83,126.97,126.89,6.0013]
[1719198343710,20.0,126.96,126.89,6.0013]
[1719198345026,20.34,126.95,126.89,6.0013]
[1719198345227,0.34,126.95,126.89,6.0013]
[1719198350034,0.34,126.95,126.88,16.4036]
[1719198350536,20.34,126.95,126.88,16.4036]
[1719198351120,20.17,126.95,126.88,16.4036]
[1719198351438,20.0,126.94,126.88,16.4036]
[1719198351737,0.17,126.95,126.88,16.4036]
[1719198351922,20.17,126.96,126.88,16.4036]
[1719198353262,20.0,126.96,126.89,22.5856]
[1719198353440,20.0,126.96,126.9,0.17]
[1719198353645,16.4036,126.99,126.9,0.17]
[1719198353646,21.96,127.04,126.9,0.17]
[1719198353959,21.96,127.01,126.9,0.17]
[1719198354356,21.96,127.04,126.9,0.17]
[1719198354760,21.96,127.03,126.9,0.17]
[1719198355649,0.17,127.02,126.9,0.17]
[1719198356446,0.17,127.02,126.91,6.1828]
[1719198356644,20.34,127.02,126.92,16.3189]
[1719198356840,20.34,127.02,126.93,6.0902]
[1719198357639,20.17,127.02,126.93,6.0902]
[1719198359061,0.17,127.01,126.93,6.0902]
[1719198361264,67.13,127.01,126.93,6.0902]
[1719198361463,20.17,127.0,126.93,6.0902]
[1719198361657,0.17,126.99,126.93,6.0902]
[1719198363561,20.0,127.0,126.93,6.0902]
[1719198365265,0.17,126.99,126.93,6.0902]
[1719198365647,18.81,126.98,126.93,6.0902]
[1719198365960,18.81,126.96,126.93,6.0902]
[1719198366158,0.34,126.95,126.93,6.0902]
[1719198366674,20.34,126.95,126.93,6.0902]
[1719198369981,20.34,126.95,126.92,16.3189]
[1719198371053,18.81,126.94,126.9,6.1464]
[1719198371359,18.81,126.91,126.86,15.6396]
[1719198371569,18.81,126.89,126.86,15.6396]
[1719198371762,20.0,126.88,126.86,15.6396]
[1719198371961,108.4398,127.0,126.86,15.6396]
[1719198371962,18.81,126.91,126.86,15.6396]
[1719198372384,20.0,126.9,126.86,15.6396]
[1719198373162,0.34,126.92,126.86,15.6396]
[1719198373579,20.34,126.92,126.86,15.6396]
[1719198374485,20.34,126.92,126.87,6.3067]
[1719198379780,20.17,126.92,126.87,6.3067]
[1719198380075,20.0,126.92,126.87,6.3067]
[1719198380566,15.6396,126.96,126.88,15.6056]
[1719198380760,18.81,126.98,126.89,6.0399]
[1719198380964,20.0,126.97,126.89,6.0399]
[1719198381281,18.81,126.96,126.89,6.0399]
[1719198381464,2.69216769,126.98,126.89,6.0399]
[1719198381659,18.81,126.97,126.89,6.0399]
[1719198381866,18.81,126.94,126.89,6.0399]
[1719198382785,0.34,126.93,126.89,6.0399]
[1719198382971,20.34,126.93,126.89,6.0399]
[1719198385674,18.81,126.92,126.89,6.0399]
[1719198385871,20.0,126.91,126.89,6.0399]
[1719198388405,18.81,126.9,126.82,6.0647]
[1719198388583,18.81,126.86,126.82,6.0647]
[1719198390108,18.81,126.88,126.82,6.0647]
[1719198390297,0.34,126.89,126.82,6.0647]
[1719198390484,20.0,126.87,126.82,6.0647]
[1719198390684,19.15,126.89,126.82,6.0647]
[1719198390887,20.17,126.88,126.82,6.0647]
[1719198391305,18.81,126.84,126.76,22.8077]
[1719198391483,18.81,126.84,126.76,16.477]
[1719198391689,20.17,126.88,126.79,6.3513]
[1719198392497,38.98,126.88,126.79,6.3513]
[1719198394611,38.81,126.88,126.79,6.3513]
[1719198394995,20.0,126.88,126.81,6.3307]
[1719198395317,18.81,126.92,126.83,15.2789]
[1719198395622,2.69216769,126.93,126.84,6.3307]
[1719198395778,6.25408883,126.96,126.85,0.17]
[1719198395988,18.81,126.95,126.85,0.17]
[1719198396217,18.81,126.95,126.84,6.5007]
[1719198396218,34.0889,126.95,126.84,6.5007]
[1719198396429,34.0889,126.95,126.84,6.3307]
[1719198396714,21.98,126.93,126.84,6.3307]
[1719198397105,20.0,126.92,126.84,6.3307]
[1719198397437,15.2789,126.95,126.84,6.3307]
[1719198397438,20.0,126.91,126.84,6.3307]
[1719198397650,15.2789,126.95,126.84,6.3307]
[1719198397822,20.0,126.94,126.84,6.3307]
[1719198398210,2.69216769,126.93,126.84,6.3307]
[1719198398834,0.34,126.92,126.84,6.3307]
[1719198399523,15.2789,126.95,126.9,6.1267]
[1719198400133,15.2789,126.95,126.91,0.17]
[1719198400341,15.2789,126.95,126.91,0.34]
[1719198400940,15.2789,126.95,126.91,0.17]
[1719198401118,15.2789,126.95,126.9,6.1267]
[1719198401716,15.2789,126.95,126.91,8.0495]
[1719198401917,15.2789,126.95,126.91,0.17]
[1719198402141,15.2789,126.95,126.91,0.34]
[1719198402715,15.2789,126.95,126.9,6.1267]
[1719198403048,6.32892408,127.03,126.9,6.1267]
[1719198403236,15.2477,127.02,126.9,6.1267]
[1719198403433,20.0,127.01,126.9,6.1267]
[1719198403730,0.34,127.0,126.9,6.1267]
[1719198408833,20.0,127.01,126.9,6.1267]
[1719198409043,20.0,127.01,126.92,16.592]
[1719198410731,0.34,127.0,126.92,16.592]
[1719198411442,0.17,127.0,126.92,16.592]
[1719198412623,0.34,127.0,126.92,16.592]
[1719198417446,67.32,127.0,126.92,16.592]
[1719198417957,20.0,126.99,126.92,16.592]
[1719198418126,0.34,126.98,126.92,16.592]
[1719198419434,20.0,126.99,126.92,16.592]